[Event "26th Hit Open-A 2022"]
[Site "Nova Gorica"]
[Date "2022.09.17"]
[Round "2.31"]
[White "Cirkvencic, Franci"]
[Black "Gregoric, Andraz"]
[Result "0-1"]
[ECO "A46"]
[WhiteElo "1987"]
[BlackElo "2182"]
[Annotator "TA"]
[PlyCount "102"]
[EventDate "2022.09.16"]
[EventType "swiss"]
[EventCountry "SLO"]
[SourceTitle "playchess.com"]
[Source "ChessBase"]
[SourceQuality "1"]
[TimeControl "5400+30"]

{[%evp 9,102,2,22,-9,23,3,2,3,14,-29,-8,-11,8,0,-9,-11,52,4,39,8,7,0,0,-6,-9,-4,-5,-19,4,-72,-61,-73,-57,-55,-65,-62,-81,-70,-21,-145,-144,-131,-137,-184,-160,-279,-277,-331,-354,-345,-356,-478,-332,-383,-381,-369,-345,-574,-565,-577,-512,-516,-512,-835,-527,-695,-685,-651,-560,-695,-688,-679,-677,-869,-869,-841,-792,-880,-783,-783,-783,-783,-664,-29974,-29976,-29976,-29977,-29976,-29977,-29974,-29977,-29976,-29977,-29974,-29977]} 1. d4 {[%emt 0:00:03]} Nf6 {[%emt 0:00:07]} 2. Nf3 {[%emt 0:00:11]} e6 {[%emt 0:00:05]} 3. g3 {[%emt 0:00:21]} b5 {[%emt 0:00:47]} 4. Bg2 {[%emt 0:00:38]} Bb7 {[%emt 0:00:18]} 5. O-O {[%emt 0:00:43]} Be7 {[%emt 0:01:34]} 6. a4 {[%emt 0:03:55] A46: 1 d4 Nf6 2 Nf3 e6: Torre, London and Colle Systems.} a6 {[%emt 0:00:44]} 7. Nbd2 {[%emt 0:04:01]} d6 {[%emt 0:08:12]} 8. Re1 {[%emt 0:02:19] [#] The position is equal.} c5 $146 {[%emt 0:08:19]} ({Predecessor:} 8... Nbd7 9. b3 c5 10. Bb2 O-O 11. e4 cxd4 12. Nxd4 b4 13. Rc1 Nc5 14. Qe2 Re8 {½-½ (35) Pinto,D (2066)-Nieto Rodriguez,A (2182) Montevideo 2016}) 9. c4 {[%emt 0:04:31]} bxc4 {[%emt 0:15:59]} 10. Nxc4 {[%emt 0:00:33]} d5 {[%emt 0:02:05]} 11. Nce5 {[%emt 0:01:45]} O-O {[%emt 0:01:13]} 12. Qb3 {[%emt 0:17:17] [#]} (12. dxc5 {is more complex.} Bxc5 13. Qb3 Nc6 14. Nxc6 Bxc6 15. Ne5) 12... Qc7 {[%emt 0:04:22]} (12... Nc6 $1 $11) 13. dxc5 {[%emt 0:05:42]} (13. Bf4 $14 c4 14. Rec1) 13... Bxc5 {[%emt 0:03:12]} (13... Nbd7 {keeps more tension.} 14. Bf4 Nxc5 15. Rac1 Rac8) 14. Nd3 {[%emt 0:00:29]} (14. Bf4 {feels hotter.} Ne4 15. Nd3 Bd6 16. Rec1) 14... Bd6 {[%emt 0:01:54]} 15. Be3 {[%emt 0:01:33]} Qe7 {[%emt 0:13:32]} 16. Nfe5 {[%emt 0:03:48]} Nc6 {[%emt 0:01:29]} 17. Nxc6 {[%emt 0:00:42]} Bxc6 {[%emt 0:00:08]} 18. Rec1 {[%emt 0:02:48]} Rab8 {[%emt 0:02:22]} 19. Bb6 {[%emt 0:02:53]} (19. Qc3 $11 {keeps the balance.} Rfc8 20. Qa5) 19... Rfc8 $17 {[%emt 0:01:49] And now ...a5 would win.} 20. a5 $1 {[%emt 0:02:05]} Nd7 {[%emt 0:01:08]} 21. Rc2 {[%emt 0:03:22]} Nxb6 {[%emt 0:02:56]} 22. axb6 {[%emt 0:00:08]} Qb7 {[%emt 0:02:46]} 23. Rac1 {[%emt 0:01:44]} Bb5 {[%emt 0:01:26]} (23... Qxb6 24. Qxb6 Rxb6 25. e4 $16) ({Black should try} 23... Bd7 $1 $15 24. Rxc8+ Bxc8) 24. e4 {[%emt 0:04:45] Black keeps a firm grip on the game.} (24. Rxc8+ $11 {was the only way to keep the balance.} Rxc8 25. Rxc8+ Qxc8 26. e4) 24... Rxc2 $1 {[%emt 0:00:43]} ({Don't do} 24... dxe4 25. Bxe4 $1 Rxc2 26. Bxb7 Rxc1+ 27. Nxc1 $16) 25. Qxc2 {[%emt 0:00:36]} dxe4 {[%emt 0:01:49] Black is more active.} ({Not} 25... Qxb6 26. exd5 e5 27. Qc3 $15) 26. Nf4 {[%emt 0:01:09]} (26. Nc5 $17 Qxb6 27. Nxe4) 26... Bxf4 {[%emt 0:04:28]} 27. gxf4 {[%emt 0:04:31]} (27. Bxe4 $17 {only move.} Qxb6 28. gxf4) 27... f5 $19 {[%emt 0:03:21]} ({Weaker is} 27... Qxb6 28. Qxe4 Be8 29. Rc2 $17) 28. Qc5 {[%emt 0:01:01]} Qxb6 {[%emt 0:00:49]} 29. Qe5 {[%emt 0:00:04] aiming for Rc7.} Rd8 {[%emt 0:03:36]} 30. h4 {[%emt 0:02:00]} Qd6 {[%emt 0:04:57]} 31. Rc8 {[%emt 0:02:35] Hoping for Qxd6.} Qd1+ {[%emt 0:02:43]} 32. Kh2 {[%emt 0:00:09] [#]} Kf7 {[%emt 0:01:04]} 33. Qc7+ {[%emt 0:04:15]} (33. Rc7+ Rd7 34. Rxd7+ Bxd7 35. Qc7) 33... Rd7 {[%emt 0:00:08]} 34. Qc5 {[%emt 0:11:47]} Qd6 {[%emt 0:00:34] Prevents Rc7.} 35. Qe3 {[%emt 0:00:06]} Qd2 {[%emt 0:01:35]} 36. Qg3 {[%emt 0:00:11]} (36. Rc7 $142 Qxb2 37. Qc5) 36... Qxb2 {[%emt 0:00:28]} 37. Rh8 {[%emt 0:02:49]} Rd3 {[%emt 0:01:23]} 38. Qg5 {[%emt 0:00:53]} Qf6 {[%emt 0:00:21]} 39. h5 {[%emt 0:04:13]} h6 {[%emt 0:01:10]} 40. Qxf6+ {[%emt 0:00:23]} Kxf6 {[%emt 0:00:03][%mdl 4096] Endgame KRB-KRB} 41. Rf8+ {[%emt 0:01:15]} Ke7 {[%emt 0:00:05]} 42. Rb8 {[%emt 0:01:00]} Rd7 {[%emt 0:00:20]} 43. Rb6 {[%emt 0:00:27]} Ra7 {[%emt 0:00:38]} 44. Kg3 {[%emt 0:00:37]} Be2 {[%emt 0:00:29] Strongly threatening ...a5.} 45. Rb2 {[%emt 0:02:15]} Bd3 {[%emt 0:01:32] ...a5 is the strong threat.} 46. f3 {[%emt 0:00:27]} e3 {[%emt 0:00:09][%cal Be4e3,Be3e2][%mdl 32] Black mates.} 47. Rb3 {[%emt 0:00:49]} e2 {[%emt 0:00:08]} 48. Kf2 {[%emt 0:00:15]} Bc4 {[%emt 0:00:11]} 49. Rc3 {[%emt 0:00:41]} Bb5 {[%emt 0:00:04]} 50. Bh3 {[%emt 0:00:17]} Rd7 {[%emt 0:00:34]} 51. Re3 {[%emt 0:00:12]} Rd1 {[%emt 0:00:29] Weighted Error Value: White=0.67/Black=0.33} 0-1

[Event "26th Hit Open-A 2022"]
[Site "Nova Gorica"]
[Date "2022.09.17"]
[Round "2.32"]
[White "Leitner, Gerald"]
[Black "Goroshkova, Liudmila"]
[Result "1-0"]
[ECO "B23"]
[WhiteElo "2181"]
[BlackElo "1961"]
[Annotator "TA"]
[PlyCount "139"]
[EventDate "2022.09.16"]
[EventType "swiss"]
[EventCountry "SLO"]
[SourceTitle "playchess.com"]
[Source "ChessBase"]
[SourceQuality "1"]
[TimeControl "5400+30"]

{[%evp 9,139,39,52,40,46,40,47,44,75,17,20,32,26,14,17,14,16,8,26,31,31,0,17,16,43,-20,-36,-67,11,19,19,10,17,18,1,0,29,33,25,27,39,0,0,0,29,6,7,7,7,7,171,61,192,184,197,179,170,108,102,0,199,39,39,39,39,46,39,73,416,264,348,364,356,0,0,0,266,15,15,0,62,13,13,0,0,0,0,-8,-8,-8,-8,-8,0,0,0,0,0,0,56,11,56,56,11204,8066,5601,3125,29964,29964,29960,29965,29976,29968,29966,29968,29969,29970,29976,29977,29977,29978,29980,29981,29981,29977,29977,29974,29974,29975,29975,29975,29974,29974]} 1. e4 {[%emt 0:00:03]} c5 {[%emt 0:00:44]} 2. Nc3 {[%emt 0:00:02]} d6 {[%emt 0:00:26]} 3. g3 {[%emt 0:00:07]} Bd7 {[%emt 0:09:31]} 4. Bg2 {[%emt 0:00:04]} Bc6 {[%emt 0:00:04]} 5. Nge2 {[%emt 0:00:51]} e5 {[%emt 0:00:48]} 6. d3 {[%emt 0:01:25] B23: Closed Sicilian: Lines without g3.} Nf6 {[%emt 0:00:53]} 7. O-O {[%emt 0:00:52]} Be7 {[%emt 0:00:30] [#]} 8. f4 $146 {[%emt 0:00:15] White is slightly better.} ({Predecessor:} 8. Nd5 Nxd5 9. exd5 Bd7 10. Nc3 O-O 11. f4 f6 12. Be3 Na6 13. fxe5 fxe5 14. Be4 Rxf1+ 15. Qxf1 {1-0 (44) Anta,J-Tuimil Martinez,R La Coruna 1998}) 8... Na6 {[%emt 0:05:17]} 9. h3 {[%emt 0:01:44]} (9. Nd5 $16) 9... Nc7 $11 {[%emt 0:01:35]} 10. a3 {[%emt 0:10:01]} O-O {[%emt 0:05:51]} 11. Kh2 {[%emt 0:05:44]} b5 {[%emt 0:03:37]} 12. Qe1 {[%emt 0:03:19]} a5 {[%emt 0:01:37]} 13. Nd1 {[%emt 0:04:26][%cal Bc3d1,Bd1e3,Be3c4][%mdl 32]} b4 {[%emt 0:02:01]} 14. Ne3 {[%emt 0:00:18]} Re8 {[%emt 0:06:50]} 15. a4 {[%emt 0:06:08]} Bf8 {[%emt 0:00:51]} 16. Qf2 {[%emt 0:07:40]} d5 {[%emt 0:12:28][%cal Rd5e4]} 17. exd5 {[%emt 0:06:22]} (17. fxe5 $14 Rxe5 18. exd5 Bxd5 19. Nxd5 Ncxd5 20. Nf4) 17... Ncxd5 {[%emt 0:01:36]} 18. fxe5 {[%emt 0:03:14]} Rxe5 {[%emt 0:01:20]} (18... Nxe3 $1 $15 19. Bxe3 (19. Qxe3 Bxg2 20. Kxg2 Qd5+ 21. Qf3 Qxe5 $17) 19... Bxg2 20. Qxg2 Rxe5) 19. Nc4 {[%emt 0:01:02]} Re6 {[%emt 0:05:08]} 20. Nf4 {[%emt 0:20:42]} Nxf4 {[%emt 0:03:14]} 21. Bxf4 {[%emt 0:00:01]} Bxg2 {[%emt 0:02:20]} 22. Qxg2 {[%emt 0:03:32]} Ra7 {[%emt 0:08:49][%cal Ba8a7,Ba7e7,Be7e6][%mdl 32]} 23. Rae1 {[%emt 0:05:00]} Rae7 {[%emt 0:02:26]} 24. Rxe6 {[%emt 0:01:10]} Rxe6 {[%emt 0:00:10]} 25. b3 {[%emt 0:01:51]} Nd5 {[%emt 0:06:40]} 26. Bd2 {[%emt 0:06:15][%cal Oc4a5]} Ne7 {[%emt 0:07:07]} 27. Re1 {[%emt 0:02:33]} (27. Qf3 {feels hotter.} Rf6 28. Qe2 Re6 29. Qf2) 27... Rxe1 {[%emt 0:00:33]} 28. Bxe1 {[%emt 0:00:01]} Nf5 {[%emt 0:00:47]} 29. Bf2 {[%emt 0:00:15]} Qg5 $2 {[%emt 0:07:19]} (29... h5 $11) 30. Qd5 {[%emt 0:06:32]} (30. Nxa5 $18 {Hoping for Nc4.} g6 31. Nc4) 30... Qf6 {[%emt 0:04:15]} (30... g6 $14) 31. Qe5 {[%emt 0:00:46]} ({And not} 31. Nxa5 Nh4 32. Bxc5 Nf3+ 33. Kg2 Ne1+ 34. Kg1 (34. Kh2 $2 Qf1 $19) 34... Nf3+ 35. Kg2 Ne1+ 36. Kg1 (36. Kh2 $2 Qf1 $19) 36... Nf3+ 37. Kg2 $11) (31. Bxc5 $6 Bxc5 32. Qxc5 g6 $16) 31... Qxe5 {[%emt 0:00:27]} 32. Nxe5 $18 {[%emt 0:00:02][%mdl 4096] Endgame KBN-KBN} Bd6 {[%emt 0:00:21]} 33. Nc4 {[%emt 0:00:27]} (33. Nc6 $1 $18 {[%cal Rc6a5]}) 33... Bc7 $16 {[%emt 0:00:08]} 34. Kg2 {[%emt 0:00:01]} (34. Bxc5 $16 {Threatens to win with Kg2.} Nxg3 35. Kg2) 34... f6 $2 {[%emt 0:00:59]} (34... Nd4 $11) 35. g4 $2 {[%emt 0:00:53]} (35. Bxc5 $18 {g4 is the strong threat.} Kf7 36. g4) 35... Nd4 $14 {[%emt 0:00:36]} 36. Bxd4 {[%emt 0:00:02]} cxd4 {[%emt 0:00:01] KB-KN} 37. Kf3 {[%emt 0:00:05]} Kf7 {[%emt 0:00:25]} 38. Ke4 {[%emt 0:00:02] Black must now prevent Kd5.} Kg6 $2 {[%emt 0:00:33][%mdl 8192]} (38... Ke6 $16 {is tougher.}) 39. Nd2 {[%emt 0:02:51]} h5 {[%emt 0:00:59]} 40. Nf3 $1 {[%emt 0:01:22]} (40. Kxd4 hxg4 41. hxg4 Kg5 $15) 40... Bb6 {[%emt 0:00:26]} (40... hxg4 $2 41. hxg4 Bb6 42. Kd5 $18 (42. Nxd4 Bxd4 43. Kxd4 f5 $11)) 41. Nh4+ {[%emt 0:01:01]} ({Not} 41. Nxd4 hxg4 42. hxg4 Bxd4 43. Kxd4 f5 44. gxf5+ Kxf5 $11) 41... Kg5 $1 {[%emt 0:00:26]} 42. Nf3+ {[%emt 0:00:01]} Kg6 {[%emt 0:00:02] [#]} 43. gxh5+ {[%emt 0:01:42]} ({Stronger than} 43. Nxd4 hxg4 44. hxg4 Bxd4 45. Kxd4 f5 46. gxf5+ Kxf5 $11) (43. Kd5 $1 $18 {[%cal Rd5c6]}) 43... Kxh5 $11 {[%emt 0:00:26]} 44. Nxd4 {[%emt 0:00:49]} g6 {[%emt 0:01:20]} (44... Bxd4 $11 45. Kxd4 g5) 45. Nf3 {[%emt 0:00:14]} (45. Ne6 $14 {feels stronger.}) 45... f5+ {[%emt 0:00:12]} 46. Kf4 {[%emt 0:00:59]} Bc7+ {[%emt 0:00:10]} 47. Ke3 $1 {[%emt 0:00:03]} g5 {[%emt 0:00:35]} 48. Kf2 {[%emt 0:00:54]} g4 {[%emt 0:00:28]} 49. hxg4+ {[%emt 0:00:01]} fxg4 {[%emt 0:00:13]} 50. Nd2 {[%emt 0:00:05]} Kh4 {[%emt 0:01:02] And now ...Kh3 would win.} 51. Kg2 {[%emt 0:00:06]} Kg5 {[%emt 0:00:24]} 52. Nc4 {[%emt 0:00:24]} Kf4 {[%emt 0:00:22]} 53. Kf2 {[%emt 0:00:34]} Kg5 {[%emt 0:00:21]} ({Black should play} 53... g3+ $11 54. Kg2 Bd8) 54. d4 $14 {[%emt 0:00:29]} Kf6 {[%emt 0:01:10]} 55. d5 {[%emt 0:00:07]} Bf4 $2 {[%emt 0:00:31][%mdl 8192] White stays focused until the end.} (55... Kg5 $14) 56. Nxa5 $18 {[%emt 0:00:20] White wants to mate with Nc6.} Ke5 {[%emt 0:00:15]} 57. Nc6+ {[%emt 0:00:05]} Kxd5 {[%emt 0:00:16]} 58. Nxb4+ {[%emt 0:00:02] White mates.} Kd4 {[%emt 0:00:40]} 59. a5 {[%emt 0:01:06][%cal Ba4a5,Ba5a6][%mdl 32]} Bc7 {[%emt 0:00:50]} 60. a6 {[%emt 0:00:12]} Bb6 {[%emt 0:00:07]} 61. Kg3 {[%emt 0:00:30]} Kc5 {[%emt 0:00:42] [#]} 62. c3 $1 {[%emt 0:00:26]} Bc7+ {[%emt 0:00:41]} 63. Kxg4 {[%emt 0:00:01]} Bb8 {[%emt 0:00:13]} 64. Kf5 {[%emt 0:00:06]} Kb6 {[%emt 0:00:33]} 65. Ke6 {[%emt 0:00:14]} Bg3 {[%emt 0:00:10]} 66. Kd5 {[%emt 0:00:16]} Be1 {[%emt 0:00:17]} 67. Kc4 {[%emt 0:00:10]} Bg3 {[%emt 0:00:11]} 68. a7 {[%emt 0:00:56]} Kxa7 {[%emt 0:00:08]} 69. Kb5 {[%emt 0:00:01]} Kb7 {[%emt 0:00:30]} 70. c4 {[%emt 0:00:04] Weighted Error Value: White=0.37/Black=0.42} 1-0

[Event "26th Hit Open-A 2022"]
[Site "Nova Gorica"]
[Date "2022.09.17"]
[Round "2.33"]
[White "Pirs, Matjaz"]
[Black "Schloffer, Jasmin-Denise"]
[Result "1/2-1/2"]
[ECO "C47"]
[WhiteElo "2203"]
[BlackElo "2127"]
[Annotator "TA"]
[PlyCount "133"]
[EventDate "2022.09.16"]
[EventType "swiss"]
[EventCountry "SLO"]
[SourceTitle "playchess.com"]
[Source "ChessBase"]
[SourceQuality "1"]
[TimeControl "5400+30"]

{[%evp 17,133,-3,0,0,0,0,1,0,0,0,0,0,0,0,0,0,0,0,24,29,35,21,41,42,61,62,64,78,66,70,55,67,82,21,28,0,0,0,0,0,0,-21,0,0,6,-5,0,-5,0,0,0,0,0,0,0,0,0,0,0,0,0,0,0,0,0,0,0,0,0,0,0,0,0,0,0,0,0,0,0,0,0,0,0,0,0,0,0,0,0,0,0,0,0,0,0,0,0,0,0,0,0,0,0,0,0,0,0,0,0,0,0,0,0,0,0,0,0,0]} 1. e4 {[%emt 0:00:04]} e5 {[%emt 0:00:06]} 2. Nc3 {[%emt 0:01:13]} Nf6 {[%emt 0:00:06]} 3. Nf3 {[%emt 0:01:03]} Nc6 {[%emt 0:00:06]} 4. d4 {[%emt 0:01:32]} exd4 {[%emt 0:00:14]} 5. Nxd4 {[%emt 0:00:07]} Bb4 {[%emt 0:00:04]} 6. Nxc6 {[%emt 0:00:19]} bxc6 {[%emt 0:00:05]} 7. Bd3 {[%emt 0:00:07]} d5 {[%emt 0:00:06]} 8. exd5 {[%emt 0:00:44]} cxd5 {[%emt 0:00:05] 8...0-0 is more advanced technology.} 9. O-O {[%emt 0:00:36]} O-O {[%emt 0:00:05]} 10. h3 {[%emt 0:03:56] C47: Scotch Four Knights and Four Knights with 4 g3.} c6 {[%emt 0:02:27]} 11. Bf4 {[%emt 0:05:46]} Bd6 {[%emt 0:03:20]} 12. Bxd6 {[%emt 0:12:26]} Qxd6 {[%emt 0:00:06]} 13. Re1 {[%emt 0:00:52]} Rb8 {[%emt 0:02:36]} 14. b3 {[%emt 0:05:06]} Be6 {[%emt 0:01:39] [#]} 15. Ne2 $146 {[%emt 0:07:34]} ({Predecessor:} 15. Qd2 Rfd8 16. Rad1 c5 17. Ne2 Qb6 18. Nf4 Rbc8 19. Qe2 c4 20. bxc4 dxc4 21. Be4 Rxd1 22. Rxd1 Re8 23. Qf3 Bxh3 24. Bxh7+ Kxh7 25. Nxh3 Qb2 26. Qf5+ Kg8 {½-½ (26) Keetman,M (2122)-Kalle,E (1862) Rotterdam 2016}) 15... c5 {[%emt 0:09:32]} 16. Ng3 {[%emt 0:05:21]} g6 {[%emt 0:07:44]} 17. Qf3 {[%emt 0:05:58]} Nd7 {[%emt 0:05:55]} 18. Rad1 {[%emt 0:00:25]} f5 {[%emt 0:15:25]} 19. Qe3 {[%emt 0:04:57]} Rbe8 {[%emt 0:03:31]} 20. Qg5 {[%emt 0:03:49][%cal Od3f5]} Kh8 {[%emt 0:05:08]} 21. Bb5 {[%emt 0:05:39]} a6 {[%emt 0:04:48]} 22. Ba4 {[%emt 0:08:08]} Bf7 {[%emt 0:11:56]} 23. Bxd7 {[%emt 0:01:44]} Qxd7 {[%emt 0:00:18]} 24. Qf6+ {[%emt 0:00:59]} Kg8 {[%emt 0:00:05]} 25. Rxe8 {[%emt 0:03:59] White is much more active.} (25. Qxa6 $16 Qc7 26. a4) 25... Rxe8 $11 {[%emt 0:00:52]} 26. Qg5 {[%emt 0:13:20]} Qe7 {[%emt 0:01:03] The position is equal.} 27. Qd2 {[%emt 0:02:03]} Qe5 {[%emt 0:01:39]} 28. Nf1 {[%emt 0:00:18]} d4 {[%emt 0:02:56]} 29. Qd3 {[%emt 0:02:00]} Qf6 {[%emt 0:04:12]} 30. Nd2 {[%emt 0:00:48]} Qc6 {[%emt 0:01:23]} 31. Nf1 {[%emt 0:02:04]} a5 {[%emt 0:03:18]} 32. Qd2 {[%emt 0:00:43]} a4 {[%emt 0:00:26]} 33. Re1 {[%emt 0:00:34]} Rxe1 {[%emt 0:03:51]} 34. Qxe1 {[%emt 0:00:03]} axb3 {[%emt 0:00:05]} 35. axb3 {[%emt 0:00:19][%mdl 4096] Endgame KQB-KQN} Qe4 {[%emt 0:00:17]} 36. Qd2 {[%emt 0:00:13]} ({Much worse is} 36. Qxe4 fxe4 37. Nd2 Bd5 $15) 36... Bd5 {[%emt 0:00:46][%csl Gd5][%cal Re4g2] [#]} 37. f3 {[%emt 0:00:06]} Qe5 {[%emt 0:01:12]} 38. Kf2 {[%emt 0:00:12]} f4 {[%emt 0:03:45][%cal Oe5e3]} 39. Qa5 {[%emt 0:00:07]} Bf7 {[%emt 0:01:54]} 40. Qd8+ {[%emt 0:00:13]} Kg7 {[%emt 0:00:06]} 41. Qd7 {[%emt 0:00:45]} h5 {[%emt 0:01:19]} 42. Qb5 {[%emt 0:00:37]} Qf5 {[%emt 0:01:46]} 43. Qe2 {[%emt 0:00:30]} c4 {[%emt 0:01:23]} 44. bxc4 {[%emt 0:00:17]} Qc5 {[%emt 0:00:00] [#] ( -> ...d3+)} 45. Ke1 {[%emt 0:02:05]} Bxc4 {[%emt 0:01:14]} 46. Qe4 {[%emt 0:00:08]} g5 {[%emt 0:01:02]} 47. Nd2 {[%emt 0:00:10]} Bf7 {[%emt 0:00:05]} 48. Qd3 {[%emt 0:01:43]} Bg6 {[%emt 0:00:42]} 49. Ne4 {[%emt 0:00:27]} Qe5 {[%emt 0:00:06]} 50. Kf1 {[%emt 0:00:38]} g4 {[%emt 0:00:33]} 51. hxg4 {[%emt 0:00:34]} hxg4 {[%emt 0:00:07]} 52. Qe2 {[%emt 0:00:14]} Be8 {[%emt 0:01:33]} 53. Nf2 {[%emt 0:00:58]} Bb5 {[%emt 0:01:46]} 54. Nd3 {[%emt 0:00:04]} Bxd3 {[%emt 0:01:23]} 55. Qxd3 {[%emt 0:00:12] KQ-KQ} g3 {[%emt 0:00:11]} 56. Qe2 {[%emt 0:01:09]} Qd6 {[%emt 0:00:28]} 57. Qc4 {[%emt 0:00:47]} Qb6 {[%emt 0:00:17]} 58. Qb3 {[%emt 0:01:09]} Qc5 {[%emt 0:01:01]} 59. Qd3 {[%emt 0:00:26]} Qb6 {[%emt 0:00:32] Hoping for ...Qb1+.} 60. Ke2 {[%emt 0:00:19]} Kf6 {[%emt 0:00:04]} 61. Kd2 {[%emt 0:01:11]} Qb4+ {[%emt 0:00:25]} 62. Ke2 {[%emt 0:00:31]} Qe7+ {[%emt 0:00:17]} 63. Kd1 {[%emt 0:00:25]} Qe3 {[%emt 0:00:38] And now ...Qg1+ would win.} 64. Qa6+ {[%emt 0:00:09]} Kf5 {[%emt 0:00:13] Strongly threatening ...Qg1+.} 65. Qc8+ {[%emt 0:00:12]} Ke5 {[%emt 0:00:47] aiming for ...Qg1+.} 66. Qc5+ {[%emt 0:00:19]} Kf6 {[%emt 0:00:05] ...Qg1+ is the strong threat.} 67. Qf8+ {[%emt 0:00:04] Weighted Error Value: White=0.04 (flawless) /Black=0.02 (flawless)} 1/2-1/2

[Event "26th Hit Open-A 2022"]
[Site "Nova Gorica"]
[Date "2022.09.17"]
[Round "2.34"]
[White "Acimovic, Sergej"]
[Black "Labrovic, Jakov"]
[Result "1-0"]
[ECO "A40"]
[WhiteElo "2114"]
[BlackElo "1882"]
[Annotator "TA"]
[PlyCount "91"]
[EventDate "2022.09.16"]
[EventType "swiss"]
[EventCountry "SLO"]
[SourceTitle "playchess.com"]
[Source "ChessBase"]
[SourceQuality "1"]
[TimeControl "5400+30"]

{[%evp 9,91,67,72,66,77,78,64,75,91,99,97,81,98,59,99,99,103,99,106,104,104,102,113,95,98,100,119,119,133,135,334,330,323,322,320,318,312,273,273,276,297,295,277,292,289,290,343,313,308,308,458,447,464,412,715,716,708,679,784,736,771,739,720,698,708,707,791,783,761,741,1156,1128,2538,2300,5556,4104,29971,29955,29985,29986,29986,29987,29988,29988]} 1. d4 {[%emt 0:00:03][%cal Bd2d4,Bd4e5][%mdl 32]} e5 {[%emt 0:00:24]} 2. dxe5 {[%emt 0:00:47]} d6 {[%emt 0:00:11]} 3. Nf3 {[%emt 0:01:54]} Nc6 {[%emt 0:00:19]} 4. Bf4 {[%emt 0:07:52]} Bg4 {[%emt 0:01:11]} 5. exd6 {[%emt 0:05:21]} Qf6 {[%emt 0:00:42]} 6. Qc1 {[%emt 0:01:23] A40: Unusual replies to 1 d4.} Bxd6 {[%emt 0:02:04]} 7. Bxd6 {[%emt 0:00:13]} Qxd6 {[%emt 0:00:08]} 8. Qd2 {[%emt 0:06:56] White is slightly better.} O-O-O {[%emt 0:02:48]} 9. Qxd6 {[%emt 0:04:59]} Rxd6 {[%emt 0:00:18] [#]} 10. e3 $146 {[%emt 0:10:01]} ({Predecessor:} 10. c3 Bxf3 11. gxf3 Nge7 12. Nd2 Rhd8 13. O-O-O f5 14. f4 Na5 15. e3 c5 16. Be2 {1-0 (38) Nedic,D (2352)-Kurth,M (2042) Hamburg 2010}) 10... Nf6 {[%emt 0:26:37]} 11. Bc4 {[%emt 0:03:03]} Ne5 {[%emt 0:02:38] [#]} 12. Be2 {[%emt 0:00:24]} Rhd8 {[%emt 0:06:01]} 13. Nc3 {[%emt 0:09:26]} (13. Nxe5 $2 {[#] is a self mate.} Rd1+ $1 {[%mdl 512]} 14. Bxd1 Rxd1#) 13... Nxf3+ {[%emt 0:05:50]} 14. gxf3 {[%emt 0:02:16]} Bh5 {[%emt 0:01:35]} 15. Rd1 {[%emt 0:11:03]} Rb6 {[%emt 0:13:48]} 16. Rxd8+ {[%emt 0:04:37]} Kxd8 {[%emt 0:00:09]} 17. b3 {[%emt 0:01:30]} Rb4 {[%emt 0:09:07]} 18. e4 {[%emt 0:07:14]} c6 {[%emt 0:02:47]} 19. Kd2 {[%emt 0:00:51] Threatens to win with Ke3.} Nd7 $2 {[%emt 0:05:46] A mistake that costs the game.} (19... Rd4+ $16 20. Ke3 Rd7) 20. Ke3 $18 {[%emt 0:00:52]} f5 {[%emt 0:04:15]} 21. a3 {[%emt 0:01:06]} ({Less strong is} 21. exf5 Rh4 22. Ne4 Nf6 23. Nxf6 gxf6 24. Rd1+ Ke7 $16) 21... f4+ {[%emt 0:02:00]} 22. Kxf4 {[%emt 0:00:09]} Rd4 {[%emt 0:00:21]} 23. Rd1 {[%emt 0:01:35]} Rxd1 {[%emt 0:00:41]} 24. Nxd1 {[%emt 0:00:07][%mdl 4096] Endgame KBN-KBN} ({Much less strong is} 24. Bxd1 $6 Ke7 25. Be2 Nf8 $18) 24... Nc5 {[%emt 0:01:07]} 25. Ke5 {[%emt 0:01:25]} Ke7 {[%emt 0:00:42]} 26. Nc3 {[%emt 0:01:00]} Nd7+ {[%emt 0:00:43]} 27. Kd4 {[%emt 0:00:08]} a5 {[%emt 0:05:05]} 28. b4 {[%emt 0:01:01]} axb4 {[%emt 0:00:45]} 29. axb4 {[%emt 0:00:06]} b5 {[%emt 0:00:18]} (29... Ke6 $142 30. Bc4+ Ke7) 30. f4 {[%emt 0:00:40]} Be8 {[%emt 0:00:19]} 31. Bf3 {[%emt 0:00:41]} Kd6 {[%emt 0:00:40]} (31... Nf8 $142 32. Ke3 Ne6) 32. e5+ {[%emt 0:01:08]} Kc7 {[%emt 0:00:11]} 33. f5 {[%emt 0:00:57]} Nb6 {[%emt 0:02:21]} 34. Ne4 {[%emt 0:01:32]} Nc4 {[%emt 0:00:58]} 35. Be2 {[%emt 0:00:53]} Nb6 {[%emt 0:00:32]} 36. Nc5 {[%emt 0:01:39]} Bf7 {[%emt 0:00:49]} 37. c3 {[%emt 0:02:26]} Nd5 {[%emt 0:01:43]} 38. Bf3 {[%emt 0:00:48] aiming for Bxd5.} Ne7 {[%emt 0:00:16]} 39. Be4 {[%emt 0:00:32]} h6 {[%emt 0:00:30]} 40. f4 {[%emt 0:00:36]} Nc8 {[%emt 0:00:54]} 41. Ne6+ {[%emt 0:00:31]} Bxe6 {[%emt 0:00:04]} 42. fxe6 {[%emt 0:00:05][%cal Bf5e6,Be6e7][%mdl 32] Threatening mate with f5.} Ne7 {[%emt 0:02:07]} 43. f5 {[%emt 0:00:17] White mates.} Nc8 {[%emt 0:00:26]} 44. f6 {[%emt 0:00:14]} gxf6 {[%emt 0:00:03]} 45. exf6 {[%emt 0:00:05]} Kd6 {[%emt 0:01:49]} 46. e7 {[%emt 0:00:05] Weighted Error Value: White=0.08 (flawless) /Black=0.26 (precise)} 1-0